[Event "56th Rubinstein Memorial D 2020"]
[Site "Polanica Zdroj"]
[Date "2020.08.20"]
[Round "6.11"]
[White "Bialik, Nikodem"]
[Black "Ciechonski, Piotr"]
[Result "1-0"]
[ECO "B00"]
[WhiteElo "1552"]
[BlackElo "1774"]
[Annotator "NA RC"]
[PlyCount "115"]
[EventDate "2020.08.15"]
[EventType "swiss"]
[EventCountry "POL"]
[SourceTitle "playchess.com"]
[Source "ChessBase"]
[SourceQuality "1"]
[TimeControl "40/5400+30:1800+30"]

1. e4 {[%emt 0:08:45]} d6 {[%emt 0:00:37]} 2. d4 {[%emt 0:00:40]} Nf6 {[%emt 0:00:02]} 3. Bd3 {[%emt 0:00:53]} Nbd7 {[%emt 0:00:04]} 4. Nc3 {[%emt 0:01:18]} e5 {[%emt 0:01:08]} 5. Nf3 {[%emt 0:01:47]} c6 {[%emt 0:00:26]} 6. O-O {[%emt 0:01:17]} Be7 {[%emt 0:00:11]} 7. b3 {[%emt 0:01:14]} Qc7 {[%emt 0:00:16]} 8. Ne2 {[%emt 0:02:17]} b5 {[%emt 0:01:43]} 9. Bb2 {[%emt 0:02:32]} a6 {[%emt 0:00:54]} 10. Rc1 {[%emt 0:03:33]} c5 {[%emt 0:03:22]} 11. dxe5 {[%emt 0:01:52]} dxe5 {[%emt 0:00:05]} 12. c4 {[%emt 0:01:25]} b4 {[%emt 0:00:10]} 13. Ng3 {[%emt 0:01:00]} g6 {[%emt 0:02:14]} 14. Qc2 {[%emt 0:01:35]} h5 {[%emt 0:07:52]} 15. Rfd1 {[%emt 0:01:11]} h4 {[%emt 0:00:12]} 16. Nf1 {[%emt 0:00:12]} h3 {[%emt 0:02:17]} 17. g3 {[%emt 0:01:08]} Bb7 {[%emt 0:02:02]} 18. Ne3 {[%emt 0:01:09]} O-O-O {[%emt 0:02:00]} 19. Nd5 {[%emt 0:00:22]} Nxd5 {[%emt 0:03:04]} 20. cxd5 {[%emt 0:00:14]} f6 {[%emt 0:01:47]} 21. a3 {[%emt 0:01:44]} a5 {[%emt 0:01:04]} 22. axb4 {[%emt 0:01:09]} axb4 {[%emt 0:00:03]} 23. Ra1 {[%emt 0:01:13]} Qb6 {[%emt 0:05:13]} 24. Nd2 {[%emt 0:01:32]} f5 {[%emt 0:02:02]} 25. Nc4 {[%emt 0:00:50]} Qf6 {[%emt 0:00:05]} 26. Ra7 {[%emt 0:02:43]} Kc7 {[%emt 0:03:20]} 27. Qe2 {[%emt 0:03:12]} Ra8 {[%emt 0:01:27]} 28. Rxa8 {[%emt 0:01:59]} Rxa8 {[%emt 0:00:41]} 29. exf5 {[%emt 0:00:31]} Bxd5 {[%emt 0:02:06]} 30. Nxe5 {[%emt 0:02:03]} Ra2 {[%emt 0:00:43]} 31. Rd2 {[%emt 0:06:59]} Rxb2 {[%emt 0:01:08]} 32. Nxd7 {[%emt 0:02:50]} Rxd2 {[%emt 0:00:52]} 33. Nxf6 {[%emt 0:00:07]} Rxe2 {[%emt 0:00:37]} 34. Nxd5+ {[%emt 0:00:05]} Kd6 {[%emt 0:05:23]} 35. Bxe2 {[%emt 0:00:13]} Kxd5 {[%emt 0:00:05]} 36. fxg6 {[%emt 0:00:06]} Bf6 {[%emt 0:01:09]} 37. Bc4+ {[%emt 0:05:16]} Ke4 {[%emt 0:00:08]} 38. Kf1 {[%emt 0:00:04]} Kf5 {[%emt 0:01:32]} 39. Bd3+ {[%emt 0:00:19]} Kg5 {[%emt 0:00:57]} 40. Ke2 {[%emt 0:00:25]} Bd4 {[%emt 0:00:04]} 41. Kf3 {[%emt 0:32:58]} Kf6 {[%emt 0:30:06]} 42. Kg4 {[%emt 0:01:35]} Bxf2 {[%emt 0:00:03]} 43. Kxh3 {[%emt 0:00:08]} Bg1 {[%emt 0:01:40]} 44. Kg2 {[%emt 0:00:09]} Bd4 {[%emt 0:00:04]} 45. Kf3 {[%emt 0:00:11]} Kg5 {[%emt 0:00:38]} 46. h3 {[%emt 0:01:58]} Bg7 {[%emt 0:00:51]} 47. h4+ {[%emt 0:01:31]} Kh5 {[%emt 0:00:09]} 48. Kf4 {[%emt 0:00:26]} Bc3 {[%emt 0:01:05]} 49. Kf5 {[%emt 0:00:23]} Kh6 {[%emt 0:00:16]} 50. g4 {[%emt 0:01:16]} Bb2 {[%emt 0:01:54]} 51. g5+ {[%emt 0:01:11]} Kh5 {[%emt 0:00:12]} 52. Ke6 {[%emt 0:00:03]} c4 {[%emt 0:02:15]} 53. bxc4 {[%emt 0:00:07]} Kxh4 {[%emt 0:00:36]} 54. c5 {[%emt 0:00:51]} Bd4 {[%emt 0:04:33]} 55. c6 {[%emt 0:00:08]} Kxg5 {[%emt 0:00:58]} 56. c7 {[%emt 0:00:05]} Kf4 {[%emt 0:00:24]} 57. c8=Q {[%emt 0:00:11]} Ke3 {[%emt 0:00:03]} 58. Qc2 {[%emt 0:00:13]} 1-0

[Event "56th Rubinstein Memorial D 2020"]
[Site "Polanica Zdroj"]
[Date "2020.08.20"]
[Round "6.12"]
[White "Zyla, Tomasz"]
[Black "Szydelko, Kazimierz"]
[Result "0-1"]
[ECO "A47"]
[WhiteElo "1543"]
[BlackElo "1713"]
[Annotator "NA RC"]
[PlyCount "80"]
[EventDate "2020.08.15"]
[EventType "swiss"]
[EventCountry "POL"]
[SourceTitle "playchess.com"]
[Source "ChessBase"]
[SourceQuality "1"]
[TimeControl "40/5400+30:1800+30"]

1. d4 {[%emt 0:00:00]} Nf6 {[%emt 0:00:00]} 2. Nf3 {[%emt 0:00:00]} b6 {[%emt 0:00:18]} 3. c4 {[%emt 0:00:00]} Bb7 {[%emt 0:00:10]} 4. e3 {[%emt 0:00:29]} e6 {[%emt 0:00:12]} 5. Nc3 {[%emt 0:00:07]} d5 {[%emt 0:00:31]} 6. b3 {[%emt 0:01:17]} Be7 {[%emt 0:01:20]} 7. Bb2 {[%emt 0:00:11]} O-O {[%emt 0:00:06]} 8. Bd3 {[%emt 0:01:38]} Nbd7 {[%emt 0:00:46]} 9. O-O {[%emt 0:01:16]} c5 {[%emt 0:00:12]} 10. Qe2 {[%emt 0:00:59]} Ne4 {[%emt 0:05:42]} 11. Rfd1 {[%emt 0:07:25]} Rc8 {[%emt 0:05:56]} 12. Rac1 {[%emt 0:09:41]} cxd4 {[%emt 0:05:32]} 13. exd4 {[%emt 0:03:52]} Nxc3 {[%emt 0:10:35]} 14. Rxc3 {[%emt 0:00:16]} Bb4 {[%emt 0:00:16]} 15. Rc2 {[%emt 0:03:37]} Qe7 {[%emt 0:02:05]} 16. Rdc1 {[%emt 0:07:13]} Nf6 17. cxd5 Nxd5 {[%emt 0:01:57]} 18. Rxc8 {[%emt 0:01:03]} Rxc8 {[%emt 0:00:25]} 19. Rxc8+ {[%emt 0:00:14]} Bxc8 {[%emt 0:00:12]} 20. Qc2 {[%emt 0:00:29]} Bb7 {[%emt 0:04:21]} 21. Bxh7+ {[%emt 0:00:09]} Kh8 {[%emt 0:05:44]} 22. Be4 {[%emt 0:04:07]} Bd6 {[%emt 0:02:38]} 23. Qe2 {[%emt 0:11:10]} Nf4 {[%emt 0:07:41]} 24. Qc2 {[%emt 0:00:18]} Ba6 {[%emt 0:01:31]} 25. g3 {[%emt 0:25:20]} f5 {[%emt 0:15:22]} 26. gxf4 {[%emt 0:12:39]} fxe4 {[%emt 0:01:28]} 27. Ne5 {[%emt 0:03:09]} Bxe5 {[%emt 0:01:34]} 28. dxe5 {[%emt 0:00:29]} Bd3 {[%emt 0:01:14]} 29. Qc1 {[%emt 0:03:19]} Qh4 {[%emt 0:06:06]} 30. Qe3 {[%emt 0:02:44]} Qg4+ {[%emt 0:00:44]} 31. Kh1 {[%emt 0:00:27]} Qd1+ {[%emt 0:04:42]} 32. Kg2 {[%emt 0:00:05]} Qf1+ {[%emt 0:00:31]} 33. Kg3 {[%emt 0:00:05]} Qg1+ {[%emt 0:00:29]} 34. Kh3 {[%emt 0:01:42]} Bf1+ {[%emt 0:00:54]} 35. Kh4 {[%emt 0:00:04]} Qxh2+ {[%emt 0:00:15]} 36. Kg5 {[%emt 0:00:28]} Qh6+ {[%emt 0:00:48]} 37. Kg4 {[%emt 0:00:08]} Bg2 {[%emt 0:02:29]} 38. f3 {[%emt 0:01:45]} Qh3+ {[%emt 0:01:03]} 39. Kg5 {[%emt 0:00:11]} Qg3+ 40. Kh5 Bxf3+ {[%emt 0:00:44]} 0-1

[Event "56th Rubinstein Memorial D 2020"]
[Site "Polanica Zdroj"]
[Date "2020.08.20"]
[Round "6.13"]
[White "Brzozowski, Pawel"]
[Black "Ciborowski, Konrad Jr"]
[Result "0-1"]
[ECO "B92"]
[WhiteElo "1620"]
[BlackElo "1405"]
[Annotator "NA RC"]
[PlyCount "100"]
[EventDate "2020.08.15"]
[EventType "swiss"]
[EventCountry "POL"]
[SourceTitle "playchess.com"]
[Source "ChessBase"]
[SourceQuality "1"]
[TimeControl "40/5400+30:1800+30"]

1. e4 {[%emt 0:00:00]} c5 {[%emt 0:00:00]} 2. Nf3 {[%emt 0:00:00]} d6 {[%emt 0:00:00]} 3. d4 {[%emt 0:00:00]} cxd4 {[%emt 0:00:00]} 4. Nxd4 {[%emt 0:00:04]} Nf6 {[%emt 0:00:00]} 5. Nc3 {[%emt 0:00:42]} a6 {[%emt 0:00:00]} 6. Be2 {[%emt 0:01:51]} e5 {[%emt 0:00:05]} 7. Nb3 {[%emt 0:00:28]} Be7 {[%emt 0:00:21]} 8. Be3 {[%emt 0:04:21]} Be6 {[%emt 0:00:29]} 9. Qd2 {[%emt 0:04:11]} O-O {[%emt 0:02:02]} 10. O-O-O {[%emt 0:04:33]} b5 {[%emt 0:01:42]} 11. f4 {[%emt 0:06:19]} b4 {[%emt 0:02:33]} 12. Nd5 {[%emt 0:00:56]} Nxe4 {[%emt 0:01:43]} 13. Nxe7+ {[%emt 0:03:02]} Qxe7 {[%emt 0:00:11]} 14. Qxb4 {[%emt 0:00:48]} f5 {[%emt 0:03:00]} 15. Bf3 {[%emt 0:15:05]} Nc6 {[%emt 0:02:33]} 16. Qa4 {[%emt 0:00:48]} Rac8 {[%emt 0:00:30]} 17. fxe5 {[%emt 0:07:19]} dxe5 {[%emt 0:04:49]} 18. Bxe4 {[%emt 0:03:45]} fxe4 {[%emt 0:00:03]} 19. Bc5 {[%emt 0:09:28]} Qg5+ {[%emt 0:05:29]} 20. Kb1 {[%emt 0:00:12]} Rfd8 {[%emt 0:01:10]} 21. Qxe4 {[%emt 0:02:25]} Kh8 {[%emt 0:03:35]} 22. Rxd8+ {[%emt 0:08:14]} Nxd8 {[%emt 0:00:39]} 23. Rf1 {[%emt 0:04:19]} Nf7 {[%emt 0:02:41]} 24. Qb7 Nh6 {[%emt 0:05:57]} 25. g3 {[%emt 0:12:34]} Qg4 {[%emt 0:03:29]} 26. Rf8+ {[%emt 0:03:06]} Rxf8 {[%emt 0:01:33]} 27. Bxf8 {[%emt 0:00:06]} Bf5 {[%emt 0:00:29]} 28. Qd5 {[%emt 0:01:12]} Bxc2+ {[%emt 0:02:04]} 29. Kxc2 {[%emt 0:00:49]} Qf5+ {[%emt 0:00:04]} 30. Kc3 {[%emt 0:02:30]} Qxf8 {[%emt 0:00:20]} 31. Qxe5 {[%emt 0:00:07]} Ng4 {[%emt 0:02:23]} 32. Qe2 {[%emt 0:01:33]} Qf6+ {[%emt 0:02:56]} 33. Nd4 {[%emt 0:01:22]} Ne5 {[%emt 0:00:46]} 34. Qe4 {[%emt 0:00:18]} h6 {[%emt 0:00:27]} 35. Qf5 {[%emt 0:00:53]} Qd6 {[%emt 0:00:24]} 36. Ne6 {[%emt 0:01:56]} Nd7 {[%emt 0:05:17]} 37. Nf4 {[%emt 0:00:45]} Nc5 {[%emt 0:00:58]} 38. Qd5 {[%emt 0:01:25]} Qb6 {[%emt 0:03:55]} 39. b4 {[%emt 0:00:15]} Nb7 {[%emt 0:00:33]} 40. Qe6 {[%emt 0:01:33]} Nd6 {[%emt 0:01:29]} 41. a4 {[%emt 0:30:36]} a5 {[%emt 0:30:25]} 42. bxa5 {[%emt 0:00:36]} Qxa5+ {[%emt 0:00:05]} 43. Kd3 {[%emt 0:00:28]} Qxa4 {[%emt 0:01:03]} 44. Ng6+ {[%emt 0:00:26]} Kh7 {[%emt 0:00:03]} 45. Nf8+ {[%emt 0:00:17]} Kh8 {[%emt 0:00:05]} 46. Ke3 {[%emt 0:00:44]} Qa7+ {[%emt 0:00:41]} 47. Kf3 {[%emt 0:00:32]} Qa8+ {[%emt 0:00:05]} 48. Kg4 {[%emt 0:00:32]} Qxf8 {[%emt 0:00:05]} 49. Kh5 {[%emt 0:00:22]} Kh7 {[%emt 0:01:02]} 50. Qg6+ {[%emt 0:00:12]} Kg8 {[%emt 0:00:36]} 0-1

[Event "56th Rubinstein Memorial D 2020"]
[Site "Polanica Zdroj"]
[Date "2020.08.20"]
[Round "6.14"]
[White "Jurkiewicz, Joanna"]
[Black "Bukala, Weronika"]
[Result "0-1"]
[ECO "B02"]
[WhiteElo "1691"]
[BlackElo "1504"]
[Annotator "NA RC"]
[PlyCount "58"]
[EventDate "2020.08.15"]
[EventType "swiss"]
[EventCountry "POL"]
[SourceTitle "playchess.com"]
[Source "ChessBase"]
[SourceQuality "1"]
[TimeControl "40/5400+30:1800+30"]

1. e4 {[%emt 0:00:00]} Nf6 {[%emt 0:00:00]} 2. Nc3 {[%emt 0:00:55]} d5 {[%emt 0:00:01]} 3. exd5 {[%emt 0:01:37]} Nxd5 {[%emt 0:00:12]} 4. Nxd5 {[%emt 0:01:17]} Qxd5 {[%emt 0:00:10]} 5. Qf3 {[%emt 0:04:37]} Qc5 {[%emt 0:02:32]} 6. c3 {[%emt 0:02:28]} Nc6 {[%emt 0:02:20]} 7. d4 {[%emt 0:02:01]} Qa5 {[%emt 0:01:00]} 8. Bc4 {[%emt 0:06:08]} Bf5 {[%emt 0:22:07]} 9. Bd2 {[%emt 0:09:04]} e6 {[%emt 0:01:52]} 10. Ne2 {[%emt 0:05:09]} O-O-O {[%emt 0:00:46]} 11. O-O {[%emt 0:03:56]} Ne5 {[%emt 0:01:54]} 12. dxe5 {[%emt 0:03:03]} Rxd2 {[%emt 0:00:12]} 13. b4 {[%emt 0:04:22]} Qxe5 {[%emt 0:01:27]} 14. Nd4 {[%emt 0:06:21]} Bg6 {[%emt 0:05:21]} 15. Rfe1 {[%emt 0:09:27]} Qh5 {[%emt 0:01:15]} 16. Qe3 {[%emt 0:02:50]} Qh6 {[%emt 0:06:28]} 17. Bxe6+ {[%emt 0:06:49]} fxe6 {[%emt 0:03:25]} 18. Qxe6+ {[%emt 0:00:39]} Kd8 {[%emt 0:00:12]} 19. Qd5+ {[%emt 0:04:57]} Bd6 {[%emt 0:01:12]} 20. g3 {[%emt 0:01:53]} Kc8 {[%emt 0:00:55]} 21. Qa5 {[%emt 0:07:13]} Rxf2 {[%emt 0:05:51]} 22. Nf3 {[%emt 0:05:12]} Rxf3 {[%emt 0:01:39]} 23. Qxa7 {[%emt 0:00:01]} Bxg3 {[%emt 0:14:00]} 24. Qa8+ {[%emt 0:04:16]} Kd7 {[%emt 0:00:06]} 25. Rad1+ {[%emt 0:00:05]} Bd3 {[%emt 0:03:03]} 26. Qa4+ {[%emt 0:03:45]} c6 {[%emt 0:01:59]} 27. Re2 {[%emt 0:01:32]} Bxh2+ {[%emt 0:02:46]} 28. Rxh2 {[%emt 0:00:10]} Qg5+ {[%emt 0:00:20]} 29. Rg2 {[%emt 0:00:27]} Qe3+ {[%emt 0:00:21]} 0-1

[Event "56th Rubinstein Memorial D 2020"]
[Site "Polanica Zdroj"]
[Date "2020.08.20"]
[Round "6.15"]
[White "Lewandrowski, Tomasz"]
[Black "Grzebieniowski, Michal"]
[Result "1/2-1/2"]
[ECO "B13"]
[WhiteElo "1879"]
[BlackElo "1390"]
[Annotator "NA RC"]
[PlyCount "37"]
[EventDate "2020.08.15"]
[EventType "swiss"]
[EventCountry "POL"]
[SourceTitle "playchess.com"]
[Source "ChessBase"]
[SourceQuality "1"]
[TimeControl "40/5400+30:1800+30"]

{[%evp 8,37,18,32,35,-12,25,-6,0,0,0,15,8,-44,15,-9,32767,-113,32767,-99,-43,-55,-82,32767,0,32767,32767,-77,0,-19,0,-68]} 1. e4 {[%emt 0:00:00]} c6 {[%emt 0:00:00]} 2. d4 {[%emt 0:00:00]} d5 {[%emt 0:00:06]} 3. exd5 {[%emt 0:00:00]} cxd5 {[%emt 0:00:11]} 4. Bd3 {[%emt 0:00:00]} Nc6 {[%emt 0:01:02]} 5. c3 {[%emt 0:00:03]} Nf6 {[%emt 0:01:17]} 6. Ne2 {[%emt 0:00:42]} Bg4 {[%emt 0:00:11]} 7. f3 {[%emt 0:02:59] B13: Caro-Kann: Exchange Variation and Panov-Botvinnik Attack.} Bh5 {[%emt 0:00:12]} 8. Nf4 {[%emt 0:02:20]} Bg6 {[%emt 0:00:20]} 9. Nxg6 {[%emt 0:02:38]} hxg6 {[%emt 0:00:11]} 10. O-O {[%emt 0:11:26]} e6 {[%emt 0:00:43]} 11. Nd2 {[%emt 0:09:45]} Bd6 {[%emt 0:00:53] [#]} 12. h3 $146 {[%emt 0:00:34]} ({Predecessor:} 12. g3 $11 {keeps the balance.} Qc7 13. Rf2 Rh3 14. Nf1 O-O-O 15. Be3 Rdh8 16. Qe2 Nh5 17. f4 g5 18. Qg4 Nxf4 19. gxf4 gxf4 20. Bxf4 Bxf4 21. Rxf4 Rxd3 {½-½ (59) Buczko,J-Gerecs,I Hungary 2002}) 12... Nh5 {[%emt 0:00:23]} 13. Nb3 {[%emt 0:02:13]} Qh4 {[%emt 0:02:51]} (13... Nf4 $17 14. Bxf4 Bxf4) 14. Qe1 {[%emt 0:00:48]} Bg3 {[%emt 0:00:43]} 15. Qe2 {[%emt 0:00:15]} Bd6 {[%emt 0:00:32]} ({Better is} 15... O-O $17) 16. Qf2 {[%emt 0:00:53]} Bg3 {[%emt 0:00:28]} 17. Qc2 {[%emt 0:03:42]} Bd6 {[%emt 0:00:42]} (17... O-O $17) 18. Qf2 {[%emt 0:11:26]} Bg3 {[%emt 0:00:09]} 19. Qc2 $15 {[%emt 0:01:05]} 1/2-1/2

[Event "56th Rubinstein Memorial D 2020"]
[Site "Polanica Zdroj"]
[Date "2020.08.20"]
[Round "6.16"]
[White "Wilgosz, Jan"]
[Black "Soszka, Szymon"]
[Result "1/2-1/2"]
[ECO "B14"]
[WhiteElo "1617"]
[BlackElo "1206"]
[Annotator "NA RC"]
[PlyCount "58"]
[EventDate "2020.08.15"]
[EventType "swiss"]
[EventCountry "POL"]
[SourceTitle "playchess.com"]
[Source "ChessBase"]
[SourceQuality "1"]
[TimeControl "40/5400+30:1800+30"]

1. e4 {[%emt 0:00:00]} c6 {[%emt 0:00:00]} 2. d4 {[%emt 0:00:00]} d5 {[%emt 0:00:00]} 3. exd5 {[%emt 0:00:00]} cxd5 {[%emt 0:00:00]} 4. c4 {[%emt 0:00:06]} Nf6 {[%emt 0:00:00]} 5. Nc3 {[%emt 0:00:14]} g6 {[%emt 0:02:22]} 6. cxd5 {[%emt 0:00:56]} Nxd5 {[%emt 0:00:41]} 7. Qb3 {[%emt 0:00:30]} Nxc3 {[%emt 0:01:48]} 8. bxc3 {[%emt 0:01:55]} Bg7 {[%emt 0:00:08]} 9. Nf3 {[%emt 0:05:08]} O-O {[%emt 0:02:22]} 10. Bf4 {[%emt 0:08:33]} Nc6 {[%emt 0:02:14]} 11. Be2 {[%emt 0:04:14]} b6 {[%emt 0:00:37]} 12. h4 {[%emt 0:05:49]} h5 {[%emt 0:02:48]} 13. Ng5 {[%emt 0:05:52]} Na5 {[%emt 0:03:09]} 14. Qd1 {[%emt 0:03:49]} f6 {[%emt 0:10:25]} 15. Nf3 {[%emt 0:10:07]} Bg4 {[%emt 0:01:25]} 16. Bd3 {[%emt 0:05:12]} f5 {[%emt 0:04:40]} 17. Qe2 {[%emt 0:05:54]} Qd5 {[%emt 0:03:56]} 18. O-O {[%emt 0:08:49]} Rac8 {[%emt 0:01:06]} 19. Rac1 {[%emt 0:03:40]} Kh8 {[%emt 0:05:48]} 20. Be5 {[%emt 0:05:15]} Bxf3 {[%emt 0:01:22]} 21. Bxg7+ {[%emt 0:00:35]} Kxg7 {[%emt 0:00:07]} 22. gxf3 {[%emt 0:01:04]} Qd6 {[%emt 0:01:50]} 23. Rfe1 {[%emt 0:02:26]} Rc7 {[%emt 0:00:16]} 24. Qe3 {[%emt 0:01:50]} Qf6 {[%emt 0:01:39]} 25. Ba6 {[%emt 0:06:52]} Rd8 {[%emt 0:07:51]} 26. f4 {[%emt 0:03:59]} Rd6 27. Qe5 Rdc6 28. Re3 Kf7 29. Qxf6+ Kxf6 1/2-1/2

[Event "56th Rubinstein Memorial D 2020"]
[Site "Polanica Zdroj"]
[Date "2020.08.20"]
[Round "6.17"]
[White "Bednarczyk, Mateusz"]
[Black "Goral, Jan"]
[Result "1-0"]
[ECO "B36"]
[WhiteElo "1500"]
[BlackElo "1580"]
[Annotator "NA RC"]
[PlyCount "91"]
[EventDate "2020.08.15"]
[EventType "swiss"]
[EventCountry "POL"]
[SourceTitle "playchess.com"]
[Source "ChessBase"]
[SourceQuality "1"]
[TimeControl "40/5400+30:1800+30"]

1. e4 {[%emt 0:00:00]} c5 {[%emt 0:00:00]} 2. Nf3 {[%emt 0:00:00]} Nc6 {[%emt 0:00:25]} 3. d4 {[%emt 0:00:00]} cxd4 {[%emt 0:00:11]} 4. Nxd4 {[%emt 0:00:00]} g6 {[%emt 0:00:20]} 5. c4 {[%emt 0:00:08]} Nf6 {[%emt 0:00:27]} 6. Nc3 {[%emt 0:00:06]} d6 {[%emt 0:00:26]} 7. Be2 {[%emt 0:00:06]} Nxd4 {[%emt 0:00:19]} 8. Qxd4 {[%emt 0:00:11]} Bg7 {[%emt 0:00:46]} 9. Be3 {[%emt 0:01:28]} O-O {[%emt 0:00:54]} 10. Qd2 {[%emt 0:00:50]} a5 {[%emt 0:01:26]} 11. O-O {[%emt 0:02:02]} a4 {[%emt 0:01:50]} 12. Rad1 {[%emt 0:01:03]} Qa5 {[%emt 0:01:38]} 13. Nd5 {[%emt 0:03:44]} Nxd5 {[%emt 0:07:06]} 14. cxd5 {[%emt 0:00:24]} Qxd2 {[%emt 0:01:22]} 15. Rxd2 {[%emt 0:00:07]} Bd7 {[%emt 0:01:00]} 16. Rc1 {[%emt 0:00:35]} Rfc8 {[%emt 0:01:16]} 17. Rdc2 {[%emt 0:00:29]} f5 {[%emt 0:09:01]} 18. f3 {[%emt 0:01:45]} Kf7 {[%emt 0:04:50]} 19. Rxc8 {[%emt 0:03:59]} Rxc8 {[%emt 0:00:51]} 20. Rxc8 {[%emt 0:00:09]} Bxc8 {[%emt 0:00:03]} 21. b3 {[%emt 0:00:11]} axb3 {[%emt 0:01:52]} 22. axb3 {[%emt 0:00:57]} Bc3 {[%emt 0:04:30]} 23. Kf2 {[%emt 0:05:20]} Kf6 {[%emt 0:01:45]} 24. Bb6 {[%emt 0:01:12]} Ke5 {[%emt 0:02:38]} 25. Ke3 {[%emt 0:02:22]} fxe4 {[%emt 0:03:35]} 26. fxe4 {[%emt 0:00:50]} Bd7 {[%emt 0:02:10]} 27. Bd8 {[%emt 0:03:30]} Bd4+ {[%emt 0:01:43]} 28. Kd2 {[%emt 0:03:42]} Kxe4 {[%emt 0:06:44]} 29. Bf3+ {[%emt 0:00:25]} Ke5 {[%emt 0:00:11]} 30. Bxe7 {[%emt 0:00:19]} Be8 {[%emt 0:00:26]} 31. Kd3 {[%emt 0:00:16]} Bg1 {[%emt 0:00:50]} 32. h3 {[%emt 0:00:16]} b5 {[%emt 0:00:55]} 33. Bf8 {[%emt 0:00:14]} Bc5 {[%emt 0:02:06]} 34. Bg7+ {[%emt 0:04:33]} Kf4 {[%emt 0:01:01]} 35. Bd4 {[%emt 0:04:47]} Bf7 {[%emt 0:03:32]} 36. Bxc5 {[%emt 0:01:56]} dxc5 {[%emt 0:00:03]} 37. d6 {[%emt 0:00:15]} Be8 {[%emt 0:03:17]} 38. Bg4 {[%emt 0:00:08]} c4+ {[%emt 0:00:53]} 39. bxc4 {[%emt 0:00:08]} bxc4+ {[%emt 0:00:03]} 40. Kxc4 {[%emt 0:00:09]} Kg3 {[%emt 0:00:17]} 41. Bf3 {[%emt 0:30:58]} h5 {[%emt 0:31:10]} 42. Kc5 {[%emt 0:00:09]} Bd7 {[%emt 0:01:02]} 43. Kb6 {[%emt 0:00:44]} g5 {[%emt 0:02:29]} 44. Kc7 {[%emt 0:00:15]} Bf5 {[%emt 0:01:27]} 45. Bxh5 {[%emt 0:00:08]} Kxg2 {[%emt 0:01:44]} 46. Bg4 {[%emt 0:00:05]} 1-0

[Event "56th Rubinstein Memorial D 2020"]
[Site "Polanica Zdroj"]
[Date "2020.08.20"]
[Round "6.18"]
[White "Ratajczak, Hubert"]
[Black "Zielinski, Marcin"]
[Result "1-0"]
[ECO "B13"]
[WhiteElo "1513"]
[BlackElo "1527"]
[Annotator "NA RC"]
[PlyCount "79"]
[EventDate "2020.08.15"]
[EventType "swiss"]
[EventCountry "POL"]
[SourceTitle "playchess.com"]
[Source "ChessBase"]
[SourceQuality "1"]
[TimeControl "40/5400+30:1800+30"]

1. e4 c6 {[%emt 0:09:37]} 2. d4 {[%emt 0:00:09]} d5 {[%emt 0:00:08]} 3. exd5 {[%emt 0:00:17]} cxd5 {[%emt 0:00:07]} 4. Bd3 {[%emt 0:00:06]} Nc6 {[%emt 0:00:36]} 5. c3 {[%emt 0:00:08]} Nf6 {[%emt 0:00:27]} 6. h3 {[%emt 0:00:06]} g6 {[%emt 0:00:14]} 7. Nf3 {[%emt 0:00:52]} Bg7 {[%emt 0:04:02]} 8. O-O {[%emt 0:00:19]} O-O {[%emt 0:00:11]} 9. Bf4 {[%emt 0:00:08]} Bf5 {[%emt 0:00:32]} 10. Be2 {[%emt 0:00:53]} Ne4 {[%emt 0:00:57]} 11. Nbd2 {[%emt 0:01:15]} Re8 {[%emt 0:00:52]} 12. Re1 {[%emt 0:01:53]} Nxd2 {[%emt 0:02:30]} 13. Qxd2 {[%emt 0:00:19]} a6 {[%emt 0:01:31]} 14. Nh4 {[%emt 0:09:09]} Bd7 {[%emt 0:03:24]} 15. Bg3 {[%emt 0:04:09]} b5 {[%emt 0:03:26]} 16. a3 {[%emt 0:00:18]} Qb6 {[%emt 0:01:03]} 17. Bf3 {[%emt 0:02:01]} e6 {[%emt 0:01:20]} 18. Bf4 {[%emt 0:06:30]} f6 {[%emt 0:02:46]} 19. Be3 {[%emt 0:05:25]} g5 {[%emt 0:04:05]} 20. Bh5 {[%emt 0:00:16]} gxh4 {[%emt 0:00:30]} 21. Bxe8 {[%emt 0:00:06]} Rxe8 {[%emt 0:00:33]} 22. Bh6 {[%emt 0:03:41]} Qd8 {[%emt 0:01:43]} 23. Bxg7 {[%emt 0:02:33]} Kxg7 {[%emt 0:00:07]} 24. Qf4 {[%emt 0:00:33]} f5 {[%emt 0:00:51]} 25. Re3 {[%emt 0:03:18]} h6 {[%emt 0:05:44]} 26. g3 {[%emt 0:01:40]} Qg5 {[%emt 0:00:39]} 27. Qd6 {[%emt 0:00:37]} Re7 {[%emt 0:01:11]} 28. Kh2 {[%emt 0:00:47]} Kh7 {[%emt 0:02:03]} 29. gxh4 {[%emt 0:04:03]} Qxh4 {[%emt 0:00:37]} 30. Rg3 {[%emt 0:02:14]} f4 {[%emt 0:02:23]} 31. Rg2 {[%emt 0:00:09]} Rf7 {[%emt 0:09:48]} 32. Rag1 {[%emt 0:00:24]} Qe7 {[%emt 0:02:13]} 33. Qc7 {[%emt 0:00:36]} e5 {[%emt 0:01:25]} 34. dxe5 {[%emt 0:00:53]} Nxe5 {[%emt 0:00:32]} 35. Qb6 {[%emt 0:05:22]} Qh4 {[%emt 0:03:28]} 36. Rg3 {[%emt 0:05:25]} fxg3+ {[%emt 0:00:32]} 37. Rxg3 {[%emt 0:00:10]} Ng4+ {[%emt 0:02:07]} 38. Kg1 {[%emt 0:00:12]} Nxf2 {[%emt 0:01:07]} 39. Qg6+ {[%emt 0:00:06]} Kh8 {[%emt 0:00:34]} 40. Qg8# 1-0